fUSD/lending_fUSD_20241118
["ID","MTS","AMOUNT","RATE_DAILY","PERIOD"]
[342510700,1731946236025,-501.64122217,9.999e-05,2]
[342510701,1731946236034,-500.0,9.999e-05,2]
[342510702,1731946236045,-500.0,9.999e-05,2]
[342510703,1731946236055,-500.0,9.999e-05,2]
[342510704,1731946236064,-500.0,9.999e-05,2]
[342510705,1731946236077,-472.4,9.999e-05,2]
[342510706,1731946236087,-500.0,9.999e-05,2]
[342510707,1731946236097,-500.0,9.999e-05,2]
[342510708,1731946236107,-500.0,9.999e-05,2]
[342510709,1731946236117,-500.0,9.999e-05,2]
[342510710,1731946236126,-500.0,9.999e-05,2]
[342510711,1731946236136,-500.0,9.999e-05,2]
[342510712,1731946236145,-500.0,9.999e-05,2]
[342510713,1731946236155,-500.0,9.999e-05,2]
[342510714,1731946236165,-500.0,9.999e-05,2]
[342510715,1731946236175,-500.0,9.999e-05,2]
[342510716,1731946236184,-500.0,9.999e-05,2]
[342510717,1731946236194,-500.0,9.999e-05,2]
[342510718,1731946236204,-503.83440636,9.999e-05,2]
[342510719,1731946236214,-500.0,9.999e-05,2]
[342510720,1731946236223,-500.0,9.999e-05,2]
[342510721,1731946236232,-646.10662128,9.999e-05,2]
[342510722,1731946236242,-500.0,9.999e-05,2]
[342510723,1731946236251,-500.0,9.999e-05,2]
[342510724,1731946236261,-500.0,9.999e-05,2]
[342510725,1731946236270,-500.0,9.999e-05,2]
[342510726,1731946236279,-500.0,9.999e-05,2]
[342510727,1731946236288,-500.0,9.999e-05,2]
[342510728,1731946236298,-500.0,9.999e-05,2]
[342510729,1731946236307,-500.0,9.999e-05,2]
[342510730,1731946236316,-500.0,9.999e-05,2]
[342510731,1731946236328,-503.19456341,9.999e-05,2]
[342510732,1731946236337,-500.0,9.999e-05,2]
[342510733,1731946236347,-500.0,9.999e-05,2]
[342510734,1731946236356,-500.0,9.999e-05,2]
[342510735,1731946236367,-500.0,9.999e-05,2]
[342510736,1731946236376,-500.0,9.999e-05,2]
[342510737,1731946236386,-500.0,9.999e-05,2]
[342510738,1731946236395,-477.36,9.999e-05,2]
[342510739,1731946236404,-1500.0,9.999e-05,2]
[342510740,1731946236413,-500.0,9.999e-05,2]
[342510741,1731946236422,-500.0,9.999e-05,2]
[342510742,1731946236431,-500.0,9.999e-05,2]
[342510743,1731946236441,-500.0,9.999e-05,2]
[342510744,1731946236450,-570.99279316,9.999e-05,2]
[342510745,1731946236460,-500.0,9.999e-05,2]
[342510746,1731946236469,-500.0,9.999e-05,2]
[342510747,1731946236478,-500.0,9.999e-05,2]
[342510748,1731946236488,-500.0,9.999e-05,2]
[342510749,1731946236497,-500.0,9.999e-05,2]
[342510750,1731946236506,-500.0,9.999e-05,2]
[342510751,1731946236517,-500.0,9.999e-05,2]
[342510752,1731946236527,-500.0,9.999e-05,2]
[342510753,1731946236536,-455.76,9.999e-05,2]
[342510754,1731946236545,-525.1628119,9.999e-05,2]
[342510755,1731946236554,-500.0,9.999e-05,2]
[342510756,1731946236564,-500.0,9.999e-05,2]
[342510757,1731946236576,-500.0,9.999e-05,2]
[342510758,1731946236585,-500.0,9.999e-05,2]
[342510759,1731946236595,-500.0,9.999e-05,2]
[342510760,1731946236605,-500.0,9.999e-05,2]
[342510761,1731946236615,-500.0,9.999e-05,2]
[342510762,1731946236624,-500.0,9.999e-05,2]
[342510763,1731946236633,-500.0,9.999e-05,2]
[342510764,1731946236644,-500.0,9.999e-05,2]
[342510765,1731946236653,-500.0,9.999e-05,2]
[342510766,1731946236663,-500.0,9.999e-05,2]
[342510767,1731946236678,-169.44,9.999e-05,2]
[342510768,1731946236688,-500.0,9.999e-05,2]
[342510769,1731946236698,-607.7,9.999e-05,2]
[342510770,1731946236708,-500.0,9.999e-05,2]
[342510771,1731946236718,-607.7,9.999e-05,2]
[342510772,1731946236727,-500.0,9.999e-05,2]
[342510773,1731946236737,-607.7,9.999e-05,2]
[342510774,1731946236747,-500.0,9.999e-05,2]
[342510775,1731946236757,-501.48,9.999e-05,2]
[342510776,1731946236767,-607.7,9.999e-05,2]
[342510777,1731946236777,-500.0,9.999e-05,2]
[342510778,1731946236787,-607.7,9.999e-05,2]
[342510779,1731946236796,-500.0,9.999e-05,2]
[342510780,1731946236806,-607.7,9.999e-05,2]
[342510781,1731946236816,-500.0,9.999e-05,2]
[342510782,1731946236828,-607.7,9.999e-05,2]
[342510783,1731946236838,-500.0,9.999e-05,2]
[342510784,1731946236847,-607.7,9.999e-05,2]
[342510785,1731946236857,-500.0,9.999e-05,2]
[342510786,1731946236866,-607.7,9.999e-05,2]
[342510787,1731946236876,-500.0,9.999e-05,2]
[342510788,1731946236885,-607.7,9.999e-05,2]
[342510789,1731946236896,-500.0,9.999e-05,2]
[342510790,1731946237124,-607.7,9.999e-05,2]
[342510791,1731946237135,-607.7,9.999e-05,2]
[342510792,1731946237145,-500.0,9.999e-05,2]
[342510793,1731946237155,-607.7,9.999e-05,2]
[342510794,1731946237165,-500.0,9.999e-05,2]
[342510795,1731946237175,-607.7,9.999e-05,2]
[342510796,1731946237184,-500.0,9.999e-05,2]
[342510797,1731946237194,-607.7,9.999e-05,2]
[342510798,1731946237205,-437.6,9.999e-05,2]
[342510799,1731946237226,-607.7,9.999e-05,2]
[342510800,1731946237237,-607.7,9.999e-05,2]
[342510801,1731946237247,-607.7,9.999e-05,2]
[342510802,1731946237258,-607.7,9.999e-05,2]
[342510803,1731946237268,-607.7,9.999e-05,2]
[342510804,1731946237278,-607.7,9.999e-05,2]
[342510805,1731946237288,-607.7,9.999e-05,2]
[342510806,1731946237298,-500.0,9.999e-05,2]
[342510807,1731946237307,-500.0,9.999e-05,2]
[342510808,1731946237317,-500.0,9.999e-05,2]
[342510809,1731946237330,-500.0,9.999e-05,2]
[342510810,1731946237341,-500.0,9.999e-05,2]
[342510811,1731946237350,-500.0,9.999e-05,2]
[342510812,1731946237360,-500.0,9.999e-05,2]
[342510813,1731946237369,-500.0,9.999e-05,2]
[342510814,1731946237379,-500.0,9.999e-05,2]
[342510815,1731946237388,-500.0,9.999e-05,2]
[342510816,1731946237398,-500.0,9.999e-05,2]
[342510817,1731946237408,-465.92,9.999e-05,2]
[342510818,1731946237417,-500.0,9.999e-05,2]
[342510819,1731946237427,-500.0,9.999e-05,2]
[342510820,1731946237436,-356.44,9.999e-05,2]
[342510821,1731946237446,-500.0,9.999e-05,2]
[342510822,1731946237455,-500.0,9.999e-05,2]
[342510823,1731946237464,-500.0,9.999e-05,2]
[342510824,1731946237474,-500.0,9.999e-05,2]
[342510825,1731946237484,-500.0,9.999e-05,2]
[342510826,1731946237493,-500.0,9.999e-05,2]
[342510827,1731946237503,-327.0559895,9.999e-05,2]
[342510830,1731946237748,-172.9440105,9.999e-05,2]
[342510831,1731946237759,-500.0,9.999e-05,2]
[342510832,1731946237768,-500.0,9.999e-05,2]
[342510833,1731946237778,-500.0,9.999e-05,2]
[342510834,1731946237788,-243.6,9.999e-05,2]
[342510835,1731946237797,-500.0,9.999e-05,2]
[342510836,1731946237806,-500.0,9.999e-05,2]
[342510838,1731946237816,-500.0,9.999e-05,2]
[342510839,1731946237826,-500.0,9.999e-05,2]
[342510840,1731946237835,-500.0,9.999e-05,2]
[342510841,1731946237844,-500.0,9.999e-05,2]
[342510842,1731946237853,-500.0,9.999e-05,2]
[342510843,1731946237862,-500.0,9.999e-05,2]
[342510845,1731946237872,-500.0,9.999e-05,2]
[342510846,1731946237881,-200.64,9.999e-05,2]
[342510847,1731946237890,-500.0,9.999e-05,2]
[342510848,1731946237899,-500.0,9.999e-05,2]
[342510849,1731946237909,-298.08,9.999e-05,2]
[342510850,1731946237918,-500.0,9.999e-05,2]
[342510851,1731946237927,-500.0,9.999e-05,2]
[342510852,1731946237936,-500.0,9.999e-05,2]
[342510853,1731946237945,-500.0,9.999e-05,2]
[342510855,1731946237955,-500.0,9.999e-05,2]
[342510856,1731946237966,-201.00312129,9.999e-05,2]
[342510857,1731946237975,-409.62,9.999e-05,2]
[342510858,1731946237984,-81474.11286818,0.0001,2]
[342510859,1731946238124,-500.0,9.895e-05,2]
[342510860,1731946238134,-500.0,9.996e-05,2]
[342510861,1731946238143,-117126.14083044,0.0001,2]
[342510862,1731946238152,-5279.67566313,0.0001,2]
[342510863,1731946238163,-180635.79599039,0.0001,2]
[342510864,1731946238174,-1004.00420653,0.0001,2]
[342510865,1731946238197,-301727.05625857,0.0001,2]
[342510866,1731946238208,-36504.17681951,0.0001,2]
[342510867,1731946238219,-223268.57759261,0.0001,2]
[342510868,1731946238229,-70642.4269109,0.0001,2]
[342510869,1731946238240,-319.54210249,0.0001,2]
[342510870,1731946238251,-170356.83348732,0.0001,2]
[342510871,1731946238262,-446.976002,0.0001,2]
[342510872,1731946238274,-1809.24,0.0001,2]
[342510873,1731946238284,-2550.66524818,0.0001,2]
[342510874,1731946238295,-2170.70401558,0.0001,2]
[342510875,1731946238308,-932.84999996,0.0001,2]
[342510876,1731946238321,-6583.12911418,0.0001,2]
[342510877,1731946238337,-2837.22251038,0.0001,2]
[342510878,1731946238348,-2654.56198938,0.0001,2]
[342510965,1731946239946,-12774.73454441,0.0001,2]
[342510966,1731946239959,-1646.05152134,0.0001,2]
[342510967,1731946240001,-5584.06840873,0.0001,2]
[342510968,1731946240017,-3602.21195516,0.0001,2]
[342510969,1731946240028,-3642.57914762,0.0001,2]
[342510970,1731946240039,-3933.36463944,0.0001,2]
[342510971,1731946240050,-4432.26839026,0.0001,2]
[342510972,1731946240061,-6757.96750055,0.0001,2]
[342510973,1731946240072,-27545.56640314,0.0001,2]
[342510974,1731946240086,-1027.43750262,0.0001,2]
[342510975,1731946240097,-1363.68834929,0.0001,2]
[342510976,1731946240108,-16996.27084958,0.0001,2]
[342510977,1731946240119,-46249.56000001,0.0001,2]
[342510978,1731946240130,-15750.0,0.0001,2]
[342510979,1731946240141,-8539.80885923,0.0001,2]
[342510980,1731946240152,-18506.4,0.0001,2]
[342510981,1731946240163,-1744.281,0.0001,2]
[342510982,1731946241484,-18496.4,0.0001,2]
[342510995,1731946241678,500.0,8.22e-05,2]
[342511121,1731946242916,-3151.51876452,0.0001,2]
[342511123,1731946242928,-2981.10139783,0.0001,2]
[342511125,1731946242939,-476.34948918,0.0001,2]
[342511127,1731946242952,-5812.75905444,0.0001,2]
[342511130,1731946242963,-2232.59175347,0.0001,2]
[342511132,1731946242978,-92407.97731591,0.0001,2]
[342511134,1731946242989,-38926.63443155,0.0001,2]
[342511139,1731946243029,-4479.51422945,0.0001,2]
[342511141,1731946243039,-65160.01317352,0.0001,2]
[342511144,1731946243052,-18124.91430992,0.0001,2]
[342511146,1731946243063,-26320.35709676,0.0001,2]
[342511149,1731946243087,-2957.56310533,0.0001,2]
[342511151,1731946243099,-11042.51881719,0.0001,2]
[342511153,1731946243110,-31627.02932504,0.0001,2]
[342511155,1731946243121,-86042.40252834,0.0001,2]
[342511158,1731946243133,-12310.23572802,0.0001,2]
[342511160,1731946243143,-36946.5,0.0001,2]
[342511163,1731946243165,-1500.0,0.0001,2]
[342511165,1731946243177,-291.86761627,0.0001,2]
[342511167,1731946243188,-356.29520526,0.0001,2]
[342511169,1731946243200,-384.89424485,0.0001,2]
[342511171,1731946243211,-259.64842148,0.0001,2]
[342511177,1731946243251,-2315.1711,0.0001,2]
[342511179,1731946243262,-6929.47843572,0.0001,2]
[342511181,1731946243273,-6160.02160969,0.0001,2]
[342511416,1731946245911,-500.0,9.895e-05,2]
[342511419,1731946245922,-517.6986547,9.996e-05,2]
[342511422,1731946245931,-8235.80906685,0.0001,2]
[342511426,1731946245943,-760.90979,0.0001,2]
[342511429,1731946245954,-6467.37,0.0001,2]
[342511432,1731946245968,-7343.1,0.0001,2]
[342511435,1731946245979,-766.79,0.0001,2]
[342511482,1731946246193,-695.11977675,0.0001,2]
[342511485,1731946246204,-8867.1281643,0.0001,2]
[342511488,1731946246216,-12574.81901764,0.0001,2]
[342511490,1731946246227,-9756.90597511,0.0001,2]
[342511493,1731946246238,-69152.85580464,0.0001,2]
[342511495,1731946246250,-442056.94832571,0.0001,2]
[342511497,1731946246261,-1141.04965139,0.0001,2]
[342511499,1731946246273,-574225.99048204,0.0001,2]
[342511502,1731946246285,-296.20000021,0.0001,2]
[342511504,1731946246297,-6360.00000001,0.0001,2]
[342511506,1731946246308,-3442.37764246,0.0001,2]
[342511508,1731946246320,-18278.40843172,0.0001,2]
[342511510,1731946246331,-1537.35,0.0001,2]
[342512171,1731946261307,686.38,8.219e-05,2]
[342512172,1731946301057,141410.34703807,0.00023,120]
[342512173,1731946950152,652.06,8.219e-05,2]
[342512218,1731947432171,-250.0,8.668e-05,2]
[342512219,1731947432184,-1599.21185228,8.81e-05,2]
[342512220,1731947432194,-400.78814772,8.81e-05,2]
[342512221,1731947432230,-490.59185228,8.81e-05,2]
[342512222,1731947432239,-250.0,8.844e-05,2]
[342512223,1731947432249,-1000.0,8.894e-05,2]
[342512224,1731947432259,-153.4,8.959e-05,2]
[342512225,1731947432268,-153.4,8.981e-05,2]
[342512226,1731947432278,-153.4,9.004e-05,2]
[342512227,1731947432287,-1533.71,9.016e-05,2]
[342512228,1731947432297,-996.50354305,9.017e-05,2]
[342512229,1731947432308,-791.24822385,9.017e-05,2]
[342512230,1731947432343,-730.11078961,9.017e-05,2]
[342512231,1731947432403,-52700.2153533,9.017e-05,2]
[342512232,1731947432517,-27292.71460582,9.017e-05,2]
[342512240,1731947438173,-25813.51708264,9.017e-05,2]
[342512241,1731947438188,-4422.68703742,9.017e-05,2]
[342512242,1731947438200,-7766.50951092,9.017e-05,2]
[342512243,1731947438211,-2418.0105149,9.017e-05,2]
[342512244,1731947438372,-51048.10234969,9.017e-05,2]
[342512245,1731947438407,-1511.39,9.141e-05,2]
[342512246,1731947438429,-304.0,9.19e-05,2]
[342512247,1731947438439,-363.67,9.278e-05,2]
[342512248,1731947438448,-165.24,9.278e-05,2]
[342512249,1731947438458,-194.318123,9.333e-05,2]
[342512250,1731947438467,-304.0,9.34e-05,2]
[342512251,1731947438477,-304.0,9.49e-05,2]
[342512252,1731947438486,-150.0,9.526e-05,2]
[342512253,1731947438495,-200.0,9.6e-05,2]
[342512254,1731947438505,-304.0,9.64e-05,2]
[342512255,1731947438514,-3570.13,9.67e-05,2]
[342512256,1731947438523,-2733.7,9.67e-05,2]
[342512257,1731947438532,-19493.3543,9.695e-05,2]
[342512258,1731947438542,-150.0,9.7e-05,2]
[342512259,1731947438551,-150.0,9.7e-05,2]
[342512260,1731947438561,-150.0,9.7e-05,2]
[342512261,1731947438570,-500.0,9.773e-05,2]
[342512263,1731947438579,-304.0,9.79e-05,2]
[342512265,1731947438588,-300.0,9.79e-05,2]
[342512267,1731947438597,-150.73,9.79e-05,2]
[342512268,1731947438606,-300.0,9.79e-05,2]
[342512269,1731947438615,-626.1857,9.795e-05,2]
[342512270,1731947438624,-418.5031,9.795e-05,2]
[342512271,1731947438633,-1071.0292,9.795e-05,2]
[342512272,1731947438642,-246.5345,9.795e-05,2]
[342512273,1731947438652,-33972.12960771,9.795e-05,2]
[342512274,1731947438666,-18169.56394865,9.795e-05,2]
[342512275,1731947438679,-30224.27914805,9.795e-05,2]
[342512276,1731947438691,-822.12012381,9.795e-05,2]
[342512277,1731947438703,-362.44210329,9.795e-05,2]
[342512278,1731947438722,-113017.33256849,9.795e-05,2]
[342512279,1731947438732,-510.4835,9.796e-05,2]
[342512280,1731947438741,-223.4069,9.796e-05,2]
[342512281,1731947438751,-55328.7842,9.796e-05,2]
[342512282,1731947438760,-4040.42775883,9.8e-05,2]
[342512283,1731947438770,-582636.60828716,9.8e-05,2]
[342512284,1731947438779,-443.86044739,9.863e-05,2]
[342512285,1731947438788,-195.179613,9.863e-05,2]
[342512287,1731947438797,-344.53433993,9.863e-05,2]
[342512288,1731947438806,-500.0,9.863e-05,2]
[342512289,1731947438816,-344.69667446,9.863e-05,2]
[342512290,1731947438825,-500.0,9.863e-05,2]
[342512291,1731947438834,-500.0,9.863e-05,2]
[342512292,1731947438843,-500.0,9.863e-05,2]
[342512293,1731947438852,-571.11,9.863e-05,2]
[342512294,1731947438861,-502.00000012,9.863e-05,2]
[342512295,1731947438870,-500.0,9.863e-05,2]
[342512296,1731947438879,-500.0,9.863e-05,2]
[342512297,1731947438889,-500.0,9.863e-05,2]
[342512298,1731947438898,-500.0,9.863e-05,2]
[342512299,1731947438907,-500.0,9.863e-05,2]
[342512300,1731947438917,-500.0,9.863e-05,2]
[342512301,1731947438926,-500.0,9.863e-05,2]
[342512303,1731947438939,-500.0,9.863e-05,2]
[342512304,1731947438948,-500.0,9.863e-05,2]
[342512305,1731947438958,-500.0,9.863e-05,2]
[342512306,1731947438967,-500.0,9.863e-05,2]
[342512307,1731947438976,-500.0,9.863e-05,2]
[342512308,1731947438985,-249.67587895,9.863e-05,2]
[342512309,1731947438994,-500.0,9.863e-05,2]
[342512310,1731947439003,-527.5013453,9.863e-05,2]
[342512311,1731947439012,-500.0,9.863e-05,2]
[342512312,1731947439021,-500.0,9.863e-05,2]
[342512313,1731947439030,-500.0,9.863e-05,2]
[342512314,1731947439040,-500.0,9.863e-05,2]
[342512315,1731947439049,-1362.00446858,9.9e-05,2]
[342512316,1731947439063,-32638.0457,9.9e-05,2]
[342512317,1731947439073,-25550.5307,9.9e-05,2]
[342512318,1731947439082,-1000.0,9.9e-05,2]
[342512319,1731947439092,-19765.55891163,9.9e-05,2]
[342512320,1731947439102,-15005.79617685,9.91e-05,2]
[342512321,1731947439111,-891.38,9.911e-05,2]
[342512322,1731947439120,-304.0,9.93e-05,2]
[342512323,1731947439131,-936.02418561,9.953e-05,2]
[342512324,1731947439142,-351.94509379,9.955e-05,2]
[342512325,1731947439151,-469.11124857,9.958e-05,2]
[342512326,1731947439161,-936.02418561,9.96e-05,2]
[342512327,1731947439170,-500.0,9.963e-05,2]
[342512328,1731947439182,-500.0,9.963e-05,2]
[342512330,1731947439192,-500.0,9.963e-05,2]
[342512331,1731947439201,-500.0,9.963e-05,2]
[342512333,1731947439210,-500.0,9.963e-05,2]
[342512334,1731947439219,-500.0,9.963e-05,2]
[342512335,1731947439229,-500.0,9.963e-05,2]
[342512336,1731947439238,-500.0,9.963e-05,2]
[342512337,1731947439248,-500.0,9.963e-05,2]
[342512338,1731947439257,-562.98770479,9.963e-05,2]
[342512339,1731947439268,-500.0,9.963e-05,2]
[342512340,1731947439278,-94081.87713556,9.964e-05,2]
[342512341,1731947439288,-94081.87713556,9.965e-05,2]
[342512342,1731947439297,-200.0,9.967e-05,2]
[342512343,1731947439307,-351.94509379,9.967e-05,2]
[342512344,1731947439316,-936.02418561,9.973e-05,2]
[342512345,1731947439326,-469.11124857,9.976e-05,2]
[342512346,1731947439335,-4114.24458638,9.979e-05,2]
[342512347,1731947439348,-299.28060083,9.979e-05,2]
[342512353,1731947440154,-281.3614,9.979e-05,2]
[342512354,1731947440215,-2455.84055588,9.979e-05,2]
[342512355,1731947440226,-2298.845,9.979e-05,2]
[342512356,1731947440238,-546.02766795,9.979e-05,2]
[342512357,1731947440250,-84086.27732452,9.979e-05,2]
[342512358,1731947440260,-7530.85007418,9.98e-05,2]
[342512359,1731947440270,-500.0,9.981e-05,2]
[342512360,1731947440279,-500.0,9.981e-05,2]
[342512361,1731947440288,-500.0,9.981e-05,2]
[342512362,1731947440297,-500.0,9.981e-05,2]
[342512363,1731947440307,-395.72411364,9.981e-05,2]
[342512364,1731947440316,-500.0,9.981e-05,2]
[342512365,1731947440324,-500.0,9.981e-05,2]
[342512366,1731947440334,-500.0,9.981e-05,2]
[342512367,1731947440343,-500.0,9.981e-05,2]
[342512368,1731947440351,-351.94509379,9.981e-05,2]
[342512369,1731947440360,-12085.45142995,9.982e-05,2]
[342512464,1731947443175,-1199.35,9.863e-05,2]
[342512465,1731947443192,-29.9840201,9.963e-05,2]
[342512466,1731947443236,-1169.3659799,9.963e-05,2]
[342512467,1731947443246,-330.6340201,9.981e-05,2]
[342512468,1731947443257,-776.06146747,9.981e-05,2]
[342512469,1731947443295,-92.65451243,9.981e-05,2]
[342512470,1731947443305,-3090.8949558,9.982e-05,2]
[342512471,1731947443316,-6702.81487323,9.982e-05,2]
[342512472,1731947443327,-2122.55895174,9.982e-05,2]
[342512473,1731947443339,-5986.89,9.982e-05,2]
[342512474,1731947443350,-7065.0516372,9.982e-05,2]
[342512475,1731947443360,-9952.81197334,9.982e-05,2]
[342512476,1731947443376,-6007.01559461,9.982e-05,2]
[342512477,1731947443412,-41068.38771969,9.982e-05,2]
[342512478,1731947443422,-720.42333583,9.982e-05,2]
[342512479,1731947443435,-469.11124857,9.982e-05,2]
[342512480,1731947443444,-469.11124857,9.983e-05,2]
[342512481,1731947443454,-94081.87713556,9.986e-05,2]
[342512482,1731947443474,-161.73064381,9.99e-05,2]
[342512483,1731947443483,-988.854,9.991e-05,2]
[342512484,1731947443493,-573.92036603,9.992e-05,2]
[342512485,1731947443502,-500.0,9.992e-05,2]
[342512486,1731947443512,-262.39298774,9.992e-05,2]
[342512495,1731947443790,-500.0,9.992e-05,2]
[342512496,1731947443800,-1199.35,9.992e-05,2]
[342512497,1731947443810,-720.42333583,9.993e-05,2]
[342512498,1731947443820,-75243.04865647,9.993e-05,3]
[342512499,1731947443829,-720.42333583,9.993e-05,2]
[342512500,1731947443839,-469.11124857,9.995e-05,2]
[342512501,1731947443848,-720.42333583,9.995e-05,2]
[342512502,1731947443857,-936.02418561,9.997e-05,2]
[342512503,1731947443866,-936.02418561,9.997e-05,2]
[342512504,1731947443876,-1180.67290617,9.998e-05,2]
[342512505,1731947443885,-151.0,9.998e-05,2]
[342512506,1731947443895,-6280.275,9.998e-05,2]
[342512507,1731947443905,-1090.0,9.998e-05,2]
[342512508,1731947443915,-29242.38,9.999e-05,2]
[342512509,1731947443924,-500.0,9.999e-05,2]
[342512510,1731947443938,-1500.0,9.999e-05,2]
[342512511,1731947443948,-276.06146747,9.999e-05,2]
[342512512,1731947443957,-500.0,9.999e-05,2]
[342512513,1731947443967,-500.0,9.999e-05,2]
[342512514,1731947443977,-29990.63175093,9.999e-05,2]
[342512515,1731947443986,-500.0,9.999e-05,2]
[342512516,1731947443996,-500.0,9.999e-05,2]
[342512517,1731947444006,-500.0,9.999e-05,2]
[342512518,1731947444015,-274.47983397,9.999e-05,2]
[342512519,1731947444025,-1199.35,9.999e-05,2]
[342512520,1731947444035,-200.0,0.0001,2]
[342512521,1731947444044,-181599.52640932,0.0001,2]
[342512522,1731947444056,-4487.72431366,0.0001,2]
[342512523,1731947444067,-720.42333583,0.0001,2]
[342512524,1731947444076,-84190.91778389,0.0001,2]
[342512525,1731947444333,-526.6052595,0.0001,2]
[342512526,1731947444344,-177453.35135257,0.0001,2]
[342512527,1731947444356,-1380.3,0.0001,2]
[342512528,1731947444367,-13022.01078488,0.0001,2]
[342512529,1731947444378,-9203.31702419,0.0001,2]
[342512544,1731947446048,-1199.35,9.999e-05,2]
[342512546,1731947446061,-1199.35,9.999e-05,2]
[342512548,1731947446071,-1199.35,9.999e-05,2]
[342512550,1731947446081,-1199.35,9.999e-05,2]
[342512552,1731947446091,-1199.35,9.999e-05,2]
[342512554,1731947446101,-1199.35,9.999e-05,2]
[342512556,1731947446111,-1199.35,9.999e-05,2]
[342512558,1731947446121,-1199.35,9.999e-05,2]
[342512560,1731947446130,-42604.06568905,0.0001,2]
[342512564,1731947446162,-1199.35,9.999e-05,2]
[342512566,1731947446172,-459900.65000104,0.0001,2]
[342512568,1731947446183,-3175.80000001,0.0001,2]
[342512573,1731947446222,-445.79927902,0.0001,2]
[342512574,1731947446283,-1584.35359998,0.0001,2]
[342512575,1731947446345,-1065.1377198,0.0001,2]
[342512576,1731947446404,-1199.35,9.999e-05,2]
[342512578,1731947446414,-337.35000001,0.0001,2]
[342513083,1731947542761,532.93,0.00023,120]
[342513084,1731947836290,619.45,8.219e-05,2]
[342513397,1731948285580,500.0,8.22e-05,2]
[342513398,1731948312784,573.51614644,8.22e-05,2]
[342513419,1731948632336,-250.0,8.901e-05,2]
[342513420,1731948632347,-1000.0,8.92e-05,2]
[342513421,1731948632356,-250.0,8.975e-05,2]
[342513422,1731948632366,-465.17,9.012e-05,2]
[342513423,1731948632375,-1645.449208,9.452e-05,2]
[342513424,1731948632384,-4784.5,9.5e-05,2]
[342513425,1731948632394,-150.0,9.562e-05,2]
[342513426,1731948632403,-150.0,9.57e-05,2]
[342513427,1731948632412,-433.2,9.57e-05,2]
[342513428,1731948632422,-150.0,9.57e-05,2]
[342513429,1731948632434,-432.89,9.57e-05,2]
[342513430,1731948632444,-300.0,9.57e-05,2]
[342513431,1731948632454,-362.32,9.57e-05,2]
[342513432,1731948632464,-776.49,9.57e-05,2]
[342513433,1731948632475,-2864.0131,9.595e-05,2]
[342513434,1731948632486,-500.0,9.595e-05,2]
[342513435,1731948632497,-9999.99,9.67e-05,2]
[342513436,1731948632507,-270.23,9.67e-05,2]
[342513437,1731948632516,-1103.88,9.67e-05,2]
[342513438,1731948632526,-150.99,9.67e-05,2]
[342513439,1731948632535,-6110.42,9.67e-05,2]
[342513440,1731948632544,-4733.76,9.67e-05,2]
[342513441,1731948632553,-150.0,9.694e-05,2]
[342513442,1731948632566,-20894.0,9.695e-05,2]
[342513443,1731948632575,-9179.2508,9.695e-05,2]
[342513444,1731948632584,-145769.3937,9.695e-05,2]
[342513445,1731948632594,-100000.0,9.695e-05,2]
[342513446,1731948632603,-78977.394,9.695e-05,2]
[342513447,1731948632612,-5962.4259,9.695e-05,2]
[342513448,1731948632621,-1000.0,9.695e-05,2]
[342513449,1731948632630,-14469.0,9.764e-05,2]
[342513450,1731948632640,-150.0,9.768e-05,2]
[342513451,1731948632649,-500.0,9.773e-05,2]
[342513452,1731948632658,-500.0,9.773e-05,2]
[342513453,1731948632667,-500.0,9.773e-05,2]
[342513454,1731948632676,-533430.62881758,9.8e-05,2]
[342513455,1731948632686,-21459.20732002,9.8e-05,2]
[342513456,1731948632695,-150.0,9.803e-05,2]
[342513457,1731948632704,-500.0,9.863e-05,2]
[342513458,1731948632713,-500.0,9.863e-05,2]
[342513459,1731948632723,-500.0,9.863e-05,2]
[342513460,1731948632732,-500.0,9.863e-05,2]
[342513461,1731948632741,-500.0,9.863e-05,2]
[342513462,1731948632750,-500.0,9.863e-05,2]
[342513463,1731948632759,-500.68024373,9.863e-05,2]
[342513464,1731948632768,-500.0,9.863e-05,2]
[342513465,1731948632777,-500.0,9.863e-05,2]